[Event "Early-Titled-Tuesday-Blitz-April-16-2024"]
[Site "Chess.com"]
[Date "2024.04.16"]
[Round "11"]
[White "manitodeplomo"]
[Black "AryanTari"]
[Result "0-1"]
[WhiteElo "2636"]
[BlackElo "2906"]
[TimeControl "180+1"]
[EndTime "10:12:22 PDT"]
[Termination "AryanTari won on time"]

1. d4 {[%clk 0:02:59.7]} 1... d5 {[%clk 0:02:59.5]} 2. c4 {[%clk 0:02:59.6]}
2... e6 {[%clk 0:02:56.8]} 3. Nf3 {[%clk 0:02:59.6]} 3... Nf6 {[%clk 0:02:49.8]}
4. Nc3 {[%clk 0:02:59.6]} 4... h6 {[%clk 0:02:50.1]} 5. g3 {[%clk 0:02:58.6]}
5... Bd6 {[%clk 0:02:48.7]} 6. Bg2 {[%clk 0:02:58.6]} 6... O-O {[%clk
0:02:48.8]} 7. O-O {[%clk 0:02:59.2]} 7... Nc6 {[%clk 0:02:41.3]} 8. e3 {[%clk
0:02:51.4]} 8... dxc4 {[%clk 0:02:35.8]} 9. Nd2 {[%clk 0:02:45.6]} 9... Na5
{[%clk 0:02:34.7]} 10. Qe2 {[%clk 0:02:42.1]} 10... c6 {[%clk 0:02:30.3]} 11.
Nxc4 {[%clk 0:02:39]} 11... Nxc4 {[%clk 0:02:30.7]} 12. Qxc4 {[%clk 0:02:38.9]}
12... e5 {[%clk 0:02:31.6]} 13. Rd1 {[%clk 0:02:18.7]} 13... Qe7 {[%clk
0:02:25.1]} 14. d5 {[%clk 0:02:10.2]} 14... Bg4 {[%clk 0:02:16.1]} 15. f3 {[%clk
0:02:06.5]} 15... Bd7 {[%clk 0:02:12.3]} 16. e4 {[%clk 0:01:56.5]} 16... b5
{[%clk 0:01:54.9]} 17. Qe2 {[%clk 0:01:51.6]} 17... b4 {[%clk 0:01:50.2]} 18.
dxc6 {[%clk 0:01:41.9]} 18... Bxc6 {[%clk 0:01:50.5]} 19. Nd5 {[%clk 0:01:38.3]}
19... Nxd5 {[%clk 0:01:50.6]} 20. exd5 {[%clk 0:01:39]} 20... Bd7 {[%clk
0:01:48.9]} 21. Be3 {[%clk 0:01:38.4]} 21... f5 {[%clk 0:01:47.3]} 22. Rac1
{[%clk 0:01:36.6]} 22... a5 {[%clk 0:01:43.3]} 23. Rc2 {[%clk 0:01:22.8]} 23...
Qf7 {[%clk 0:01:25.4]} 24. f4 {[%clk 0:01:12.5]} 24... e4 {[%clk 0:01:24.6]} 25.
Bf1 {[%clk 0:01:08.7]} 25... Rfc8 {[%clk 0:01:14.3]} 26. Rxc8+ {[%clk
0:01:05.4]} 26... Rxc8 {[%clk 0:01:15.2]} 27. Qa6 {[%clk 0:01:05.1]} 27... Bc5
{[%clk 0:01:13.9]} 28. Bxc5 {[%clk 0:00:59.5]} 28... Rxc5 {[%clk 0:01:14.8]} 29.
Bc4 {[%clk 0:00:47.4]} 29... Kh7 {[%clk 0:01:09.8]} 30. b3 {[%clk 0:00:44.2]}
30... Qh5 {[%clk 0:00:34.7]} 31. Be2 {[%clk 0:00:24.1]} 31... Qg6 {[%clk
0:00:29.6]} 32. Qxg6+ {[%clk 0:00:22]} 32... Kxg6 {[%clk 0:00:30.5]} 33. Kf2
{[%clk 0:00:17.9]} 33... Rc2 {[%clk 0:00:30.5]} 34. Ke3 {[%clk 0:00:15.9]} 34...
Kf6 {[%clk 0:00:27]} 35. Rd2 {[%clk 0:00:14.9]} 35... Rc3+ {[%clk 0:00:26.2]}
36. Kd4 {[%clk 0:00:15.3]} 36... g5 {[%clk 0:00:26.9]} 37. Bc4 {[%clk
0:00:13.4]} 37... gxf4 {[%clk 0:00:22.6]} 38. gxf4 {[%clk 0:00:14.3]} 38... Rf3
{[%clk 0:00:23.1]} 39. Kc5 {[%clk 0:00:13.5]} 39... Rxf4 {[%clk 0:00:20.8]} 40.
Kd6 {[%clk 0:00:13.6]} 40... Be8 {[%clk 0:00:21.5]} 41. Kc7 {[%clk 0:00:12.8]}
41... Ke5 {[%clk 0:00:20.1]} 42. d6 {[%clk 0:00:12.7]} 42... e3 {[%clk
0:00:18.8]} 43. Rd1 {[%clk 0:00:10.1]} 43... Rd4 {[%clk 0:00:16.1]} 44. Rxd4
{[%clk 0:00:08.4]} 44... Kxd4 {[%clk 0:00:17]} 45. Kd8 {[%clk 0:00:09]} 45...
Bc6 {[%clk 0:00:14.5]} 46. Kc7 {[%clk 0:00:08.7]} 46... Kc5 {[%clk 0:00:14.5]}
47. d7 {[%clk 0:00:08]} 47... Bxd7 {[%clk 0:00:14.9]} 48. Kxd7 {[%clk
0:00:08.9]} 48... f4 {[%clk 0:00:14.3]} 49. Be2 {[%clk 0:00:08.3]} 49... Kd4
{[%clk 0:00:15]} 50. Ke6 {[%clk 0:00:08.8]} 50... Ke4 {[%clk 0:00:13.5]} 0-1

[Event "Early-Titled-Tuesday-Blitz-April-16-2024"]
[Site "Chess.com"]
[Date "2024.04.16"]
[Round "11"]
[White "ural58"]
[Black "HajiyevKanan"]
[Result "1-0"]
[WhiteElo "2501"]
[BlackElo "2611"]
[TimeControl "180+1"]
[EndTime "10:12:22 PDT"]
[Termination "ural58 won by resignation"]

1. e4 {[%clk 0:03:00.9]} 1... c6 {[%clk 0:02:59.3]} 2. Nc3 {[%clk 0:02:58.3]}
2... d5 {[%clk 0:03:00.2]} 3. Nf3 {[%clk 0:02:58.2]} 3... a6 {[%clk 0:03:00.6]}
4. d4 {[%clk 0:02:51.1]} 4... Bg4 {[%clk 0:02:59.2]} 5. Be2 {[%clk 0:02:42.7]}
5... e6 {[%clk 0:02:58.9]} 6. O-O {[%clk 0:02:41.5]} 6... Nf6 {[%clk 0:02:59]}
7. e5 {[%clk 0:02:40.3]} 7... Nfd7 {[%clk 0:02:59.4]} 8. Nd2 {[%clk 0:02:39.4]}
8... Bxe2 {[%clk 0:02:56.7]} 9. Nxe2 {[%clk 0:02:39.3]} 9... c5 {[%clk
0:02:57.6]} 10. c3 {[%clk 0:02:39.3]} 10... Nc6 {[%clk 0:02:57.9]} 11. f4 {[%clk
0:02:34.2]} 11... Qb6 {[%clk 0:02:57.3]} 12. Nf3 {[%clk 0:02:33.1]} 12... g6
{[%clk 0:02:51.4]} 13. a3 {[%clk 0:01:50.3]} 13... Be7 {[%clk 0:02:49.6]} 14. b4
{[%clk 0:01:49.9]} 14... cxd4 {[%clk 0:02:49.1]} 15. cxd4 {[%clk 0:01:49.5]}
15... h5 {[%clk 0:02:47.4]} 16. Rb1 {[%clk 0:01:43.4]} 16... Rc8 {[%clk
0:02:47.4]} 17. Bd2 {[%clk 0:01:40.7]} 17... Kf8 {[%clk 0:02:46.5]} 18. Kh1
{[%clk 0:01:39.9]} 18... Kg7 {[%clk 0:02:46.8]} 19. g3 {[%clk 0:01:39.1]} 19...
Qb5 {[%clk 0:02:46.4]} 20. Be1 {[%clk 0:01:31.9]} 20... Nb6 {[%clk 0:02:34.2]}
21. h3 {[%clk 0:01:15.3]} 21... Rc7 {[%clk 0:02:16.5]} 22. Kg2 {[%clk
0:01:13.9]} 22... Qa4 {[%clk 0:02:06.1]} 23. Qxa4 {[%clk 0:01:08.4]} 23... Nxa4
{[%clk 0:02:07]} 24. g4 {[%clk 0:01:01.7]} 24... hxg4 {[%clk 0:02:05.2]} 25.
hxg4 {[%clk 0:01:02.4]} 25... f5 {[%clk 0:01:58.1]} 26. exf6+ {[%clk 0:01:01.1]}
26... Bxf6 {[%clk 0:01:58.2]} 27. Rb3 {[%clk 0:00:59.1]} 27... Na7 {[%clk
0:01:51.4]} 28. f5 {[%clk 0:00:48.9]} 28... exf5 {[%clk 0:01:47.7]} 29. gxf5
{[%clk 0:00:48.8]} 29... Nb5 {[%clk 0:01:41.7]} 30. Nf4 {[%clk 0:00:47.8]} 30...
Rc2+ {[%clk 0:01:30.6]} 31. Rf2 {[%clk 0:00:44.3]} 31... Rxf2+ {[%clk
0:01:30.7]} 32. Bxf2 {[%clk 0:00:44.5]} 32... gxf5 {[%clk 0:01:26.4]} 33. Nxd5
{[%clk 0:00:44.3]} 33... Kf7 {[%clk 0:01:09.2]} 34. Ne5+ {[%clk 0:00:39.9]}
34... Bxe5 {[%clk 0:00:57.8]} 35. dxe5 {[%clk 0:00:40]} 35... Ke6 {[%clk
0:00:58.5]} 36. Nf4+ {[%clk 0:00:34]} 36... Kf7 {[%clk 0:00:55.9]} 37. e6+
{[%clk 0:00:29.6]} 37... Kf6 {[%clk 0:00:56.8]} 38. Re3 {[%clk 0:00:27.7]} 38...
Rg8+ {[%clk 0:00:57.1]} 39. Kf1 {[%clk 0:00:25.7]} 39... Nac3 {[%clk 0:00:53]}
40. Be1 {[%clk 0:00:23]} 40... Ne4 {[%clk 0:00:52.9]} 41. a4 {[%clk 0:00:20.7]}
41... Nd4 {[%clk 0:00:52.7]} 42. Bc3 {[%clk 0:00:20.4]} 42... Nxc3 {[%clk
0:00:51.9]} 43. Rxc3 {[%clk 0:00:21]} 43... Nxe6 {[%clk 0:00:52.1]} 44. Nxe6
{[%clk 0:00:20.4]} 44... Kxe6 {[%clk 0:00:52.5]} 45. Rc7 {[%clk 0:00:20.8]}
45... Rb8 {[%clk 0:00:47.1]} 46. a5 {[%clk 0:00:20.9]} 46... Kd6 {[%clk
0:00:47]} 47. Rf7 {[%clk 0:00:20.8]} 47... Ke6 {[%clk 0:00:47.2]} 48. Rc7 {[%clk
0:00:20.7]} 48... b6 {[%clk 0:00:47.8]} 49. Rc6+ {[%clk 0:00:19]} 49... Kd5
{[%clk 0:00:48]} 50. Rf6 {[%clk 0:00:18.9]} 50... Ke5 {[%clk 0:00:44.3]} 51. Rc6
{[%clk 0:00:18.6]} 51... bxa5 {[%clk 0:00:44.1]} 52. bxa5 {[%clk 0:00:18.8]}
52... Rb1+ {[%clk 0:00:42.1]} 53. Ke2 {[%clk 0:00:19]} 53... Rb2+ {[%clk
0:00:42.8]} 54. Ke1 {[%clk 0:00:19.2]} 54... Rb5 {[%clk 0:00:41.5]} 55. Rxa6
{[%clk 0:00:18.5]} 55... f4 {[%clk 0:00:42.4]} 56. Ra8 {[%clk 0:00:18.3]} 56...
Ke4 {[%clk 0:00:42.4]} 57. a6 {[%clk 0:00:16.3]} 57... Ke3 {[%clk 0:00:42]} 58.
Re8+ {[%clk 0:00:15.6]} 58... Kf3 {[%clk 0:00:42.6]} 59. a7 {[%clk 0:00:15.6]}
59... Rb1+ {[%clk 0:00:42.5]} 60. Kd2 {[%clk 0:00:15.8]} 60... Rb2+ {[%clk
0:00:42.4]} 61. Kc1 {[%clk 0:00:15.9]} 61... Ra2 {[%clk 0:00:42.4]} 62. a8=Q+
{[%clk 0:00:16.5]} 62... Rxa8 {[%clk 0:00:43.1]} 63. Rxa8 {[%clk 0:00:16.7]}
63... Ke2 {[%clk 0:00:42.9]} 64. Re8+ {[%clk 0:00:15.5]} 64... Kf2 {[%clk
0:00:43.4]} 65. Kd2 {[%clk 0:00:15.8]} 65... f3 {[%clk 0:00:44.1]} 66. Rf8
{[%clk 0:00:15.3]} 1-0

[Event "Early-Titled-Tuesday-Blitz-April-16-2024"]
[Site "Chess.com"]
[Date "2024.04.16"]
[Round "11"]
[White "Kobalia"]
[Black "sonicdravise"]
[Result "1/2-1/2"]
[WhiteElo "2816"]
[BlackElo "2631"]
[TimeControl "180+1"]
[EndTime "10:12:28 PDT"]
[Termination "Game drawn by repetition"]

1. d4 {[%clk 0:03:00.9]} 1... Nf6 {[%clk 0:02:58.2]} 2. Nf3 {[%clk 0:03:01]}
2... c5 {[%clk 0:02:57.3]} 3. d5 {[%clk 0:02:58.3]} 3... b5 {[%clk 0:02:48.5]}
4. Bg5 {[%clk 0:02:57.4]} 4... g6 {[%clk 0:02:47.9]} 5. e3 {[%clk 0:02:42.9]}
5... b4 {[%clk 0:02:39.6]} 6. a3 {[%clk 0:02:39.5]} 6... Bg7 {[%clk 0:02:37.3]}
7. axb4 {[%clk 0:02:38.9]} 7... cxb4 {[%clk 0:02:36.3]} 8. Bc4 {[%clk
0:02:25.1]} 8... Ne4 {[%clk 0:02:30.7]} 9. Ra2 {[%clk 0:02:02.6]} 9... Nxg5
{[%clk 0:02:27.5]} 10. Nxg5 {[%clk 0:02:03.5]} 10... O-O {[%clk 0:02:23]} 11.
O-O {[%clk 0:02:01.1]} 11... d6 {[%clk 0:02:20.6]} 12. Nd2 {[%clk 0:01:59.1]}
12... Nd7 {[%clk 0:02:18.1]} 13. Qe2 {[%clk 0:01:54.7]} 13... Nc5 {[%clk
0:02:15.7]} 14. Nge4 {[%clk 0:01:51.2]} 14... Nxe4 {[%clk 0:02:14]} 15. Nxe4
{[%clk 0:01:52.1]} 15... a5 {[%clk 0:02:12.5]} 16. c3 {[%clk 0:01:39.8]} 16...
Bd7 {[%clk 0:02:08.6]} 17. Bb5 {[%clk 0:01:36.3]} 17... bxc3 {[%clk 0:02:04.6]}
18. Nxc3 {[%clk 0:01:34.1]} 18... Bxb5 {[%clk 0:01:53.3]} 19. Nxb5 {[%clk
0:01:31.2]} 19... Qb6 {[%clk 0:01:51.5]} 20. Rd1 {[%clk 0:01:28]} 20... Rfc8
{[%clk 0:01:47.4]} 21. h3 {[%clk 0:00:31.7]} 21... Rc5 {[%clk 0:01:46.4]} 22.
Nc3 {[%clk 0:00:23.6]} 22... Bxc3 {[%clk 0:01:37.6]} 23. bxc3 {[%clk 0:00:24.5]}
23... Rxc3 {[%clk 0:01:38.2]} 24. Rda1 {[%clk 0:00:23.4]} 24... Qc5 {[%clk
0:01:21.6]} 25. Qf3 {[%clk 0:00:20.3]} 25... Rc1+ {[%clk 0:01:20.3]} 26. Kh2
{[%clk 0:00:19.7]} 26... Rxa1 {[%clk 0:01:19.9]} 27. Rxa1 {[%clk 0:00:20.6]}
27... a4 {[%clk 0:01:19.3]} 28. Qe4 {[%clk 0:00:20.9]} 28... a3 {[%clk
0:01:15.1]} 29. Qxe7 {[%clk 0:00:20.8]} 29... Qxd5 {[%clk 0:01:13.2]} 30. f4
{[%clk 0:00:16.2]} 30... a2 {[%clk 0:01:11]} 31. Qf6 {[%clk 0:00:15.3]} 31...
Rb8 {[%clk 0:01:02.2]} 32. Qc3 {[%clk 0:00:13]} 32... h6 {[%clk 0:00:55.5]} 33.
Qa3 {[%clk 0:00:10.1]} 33... Rb1 {[%clk 0:00:26.5]} 34. Rxa2 {[%clk 0:00:09.4]}
34... Qd1 {[%clk 0:00:24.6]} 35. Qc3 {[%clk 0:00:07.3]} 35... Qg1+ {[%clk
0:00:20.5]} 36. Kg3 {[%clk 0:00:06.9]} 36... Qe1+ {[%clk 0:00:18.2]} 37. Qxe1
{[%clk 0:00:06.1]} 37... Rxe1 {[%clk 0:00:19.1]} 38. Kf3 {[%clk 0:00:05.8]}
38... Rd1 {[%clk 0:00:18.1]} 39. Ke2 {[%clk 0:00:05.9]} 39... Rd5 {[%clk
0:00:17.6]} 40. Ra6 {[%clk 0:00:05.6]} 40... Kg7 {[%clk 0:00:16.2]} 41. Ra4
{[%clk 0:00:05.3]} 41... h5 {[%clk 0:00:15.1]} 42. e4 {[%clk 0:00:05.6]} 42...
Rb5 {[%clk 0:00:14.2]} 43. Ra6 {[%clk 0:00:05.5]} 43... Rb2+ {[%clk 0:00:13.8]}
44. Kf3 {[%clk 0:00:05.5]} 44... Rb3+ {[%clk 0:00:14.3]} 45. Kf2 {[%clk
0:00:05.8]} 45... Rb2+ {[%clk 0:00:14]} 46. Kg3 {[%clk 0:00:05.8]} 46... Rb3+
{[%clk 0:00:13.2]} 47. Kf2 {[%clk 0:00:05.7]} 47... Rb2+ {[%clk 0:00:13.5]} 48.
Kf3 {[%clk 0:00:06.1]} 48... Rb3+ {[%clk 0:00:13.8]} 49. Kf2 {[%clk 0:00:06.2]}
1/2-1/2

[Event "Early-Titled-Tuesday-Blitz-April-16-2024"]
[Site "Chess.com"]
[Date "2024.04.16"]
[Round "11"]
[White "IshviAggarwal"]
[Black "NusratAlo"]
[Result "1-0"]
[WhiteElo "2139"]
[BlackElo "1896"]
[TimeControl "180+1"]
[EndTime "10:12:28 PDT"]
[Termination "IshviAggarwal won by resignation"]

1. Nf3 {[%clk 0:02:58.2]} 1... d5 {[%clk 0:02:59.8]} 2. d4 {[%clk 0:02:58.8]}
2... Nf6 {[%clk 0:03:00.1]} 3. c4 {[%clk 0:02:59.5]} 3... c6 {[%clk 0:03:00.6]}
4. g3 {[%clk 0:03:00]} 4... g6 {[%clk 0:03:00.1]} 5. Bg2 {[%clk 0:02:59.9]} 5...
Bg7 {[%clk 0:03:00.7]} 6. O-O {[%clk 0:03:00.6]} 6... O-O {[%clk 0:03:01.2]} 7.
b3 {[%clk 0:03:01.3]} 7... Re8 {[%clk 0:02:57.7]} 8. Nc3 {[%clk 0:03:00]} 8...
Be6 {[%clk 0:02:52.3]} 9. Ne5 {[%clk 0:02:59.3]} 9... Nbd7 {[%clk 0:02:52.2]}
10. Qd3 {[%clk 0:02:55.6]} 10... Nxe5 {[%clk 0:02:47.2]} 11. dxe5 {[%clk
0:02:56.5]} 11... Ne4 {[%clk 0:02:47.8]} 12. Nxe4 {[%clk 0:02:54.9]} 12... dxe4
{[%clk 0:02:47.1]} 13. Qxe4 {[%clk 0:02:52.1]} 13... Bf5 {[%clk 0:02:43.4]} 14.
Qf4 {[%clk 0:02:52.1]} 14... Qc7 {[%clk 0:02:34.9]} 15. Bb2 {[%clk 0:02:51.5]}
15... Rad8 {[%clk 0:02:33.6]} 16. Rfd1 {[%clk 0:02:49.4]} 16... Rd7 {[%clk
0:02:27.1]} 17. Rxd7 {[%clk 0:02:34.3]} 17... Qxd7 {[%clk 0:02:26.7]} 18. e4
{[%clk 0:02:30.8]} 18... Be6 {[%clk 0:02:23.5]} 19. Qe3 {[%clk 0:02:30.7]} 19...
b6 {[%clk 0:02:16]} 20. f4 {[%clk 0:02:27.3]} 20... Rd8 {[%clk 0:02:15.1]} 21.
Bf3 {[%clk 0:02:27.7]} 21... Qc7 {[%clk 0:02:09.7]} 22. Rd1 {[%clk 0:02:23.4]}
22... Rxd1+ {[%clk 0:02:09.7]} 23. Bxd1 {[%clk 0:02:23.2]} 23... Qd7 {[%clk
0:02:10.2]} 24. Qd4 {[%clk 0:02:20.9]} 24... Qc7 {[%clk 0:02:03.1]} 25. Bc2
{[%clk 0:02:15]} 25... Kf8 {[%clk 0:02:00.9]} 26. f5 {[%clk 0:02:08.5]} 26... c5
{[%clk 0:01:55.9]} 27. Qc3 {[%clk 0:01:49]} 27... Bc8 {[%clk 0:01:49.2]} 28. f6
{[%clk 0:01:41.5]} 28... Bh6 {[%clk 0:01:39.1]} 29. Qd3 {[%clk 0:01:25.9]} 29...
Qd7 {[%clk 0:01:30.2]} 30. Qxd7 {[%clk 0:01:22]} 30... Bxd7 {[%clk 0:01:31.1]}
31. Kf2 {[%clk 0:01:17.6]} 31... e6 {[%clk 0:01:22.1]} 32. a3 {[%clk 0:01:10.3]}
32... Ke8 {[%clk 0:01:20]} 33. b4 {[%clk 0:01:10.9]} 33... Bf8 {[%clk
0:01:20.3]} 34. Bc3 {[%clk 0:01:10.2]} 34... Kd8 {[%clk 0:01:18.9]} 35. h4
{[%clk 0:01:08.6]} 35... Kc7 {[%clk 0:01:12.5]} 36. Bd1 {[%clk 0:01:08.9]} 36...
Bc6 {[%clk 0:01:09.8]} 37. Ke3 {[%clk 0:01:08.5]} 37... Bh6+ {[%clk 0:01:03]}
38. Kd3 {[%clk 0:01:08.9]} 38... Bc1 {[%clk 0:00:56.9]} 39. b5 {[%clk
0:00:51.2]} 39... Bb7 {[%clk 0:00:51.3]} 40. a4 {[%clk 0:00:51.8]} 40... a5
{[%clk 0:00:47.5]} 41. bxa6 {[%clk 0:00:45.3]} 41... Bxa6 {[%clk 0:00:47.6]} 42.
Bg4 {[%clk 0:00:22.4]} 42... Kd7 {[%clk 0:00:42.7]} 43. h5 {[%clk 0:00:21.3]}
43... g5 {[%clk 0:00:35.6]} 44. h6 {[%clk 0:00:19.2]} 44... Bc8 {[%clk
0:00:30.8]} 45. Bd2 {[%clk 0:00:11.3]} 45... Bxd2 {[%clk 0:00:29.3]} 46. Kxd2
{[%clk 0:00:12.2]} 46... Kc6 {[%clk 0:00:29.1]} 47. Kc3 {[%clk 0:00:12.3]} 47...
Kb7 {[%clk 0:00:28]} 48. Bh5 {[%clk 0:00:12.1]} 48... Bd7 {[%clk 0:00:20.6]} 49.
Bxf7 {[%clk 0:00:11.1]} 49... Bxa4 {[%clk 0:00:21.2]} 50. Bxe6 {[%clk
0:00:11.5]} 1-0

[Event "Early-Titled-Tuesday-Blitz-April-16-2024"]
[Site "Chess.com"]
[Date "2024.04.16"]
[Round "11"]
[White "sathvikadiga"]
[Black "VerdeNotte"]
[Result "1-0"]
[WhiteElo "2628"]
[BlackElo "2871"]
[TimeControl "180+1"]
[EndTime "10:12:31 PDT"]
[Termination "sathvikadiga won by resignation"]

1. d4 {[%clk 0:03:00.9]} 1... Nf6 {[%clk 0:02:57.8]} 2. Nc3 {[%clk 0:02:59.9]}
2... d5 {[%clk 0:02:57.4]} 3. Bf4 {[%clk 0:03:00]} 3... g6 {[%clk 0:02:56.2]} 4.
e3 {[%clk 0:02:58.6]} 4... Bg7 {[%clk 0:02:55.7]} 5. Nf3 {[%clk 0:02:57]} 5...
O-O {[%clk 0:02:48]} 6. Be2 {[%clk 0:02:56.9]} 6... c5 {[%clk 0:02:47.6]} 7. Ne5
{[%clk 0:02:57.1]} 7... cxd4 {[%clk 0:02:33.6]} 8. exd4 {[%clk 0:02:58]} 8...
Nc6 {[%clk 0:02:33.2]} 9. Qd2 {[%clk 0:02:51.1]} 9... Ne4 {[%clk 0:02:28.1]} 10.
Nxe4 {[%clk 0:02:45.4]} 10... dxe4 {[%clk 0:02:29]} 11. Nxc6 {[%clk 0:02:45.7]}
11... bxc6 {[%clk 0:02:28.3]} 12. c3 {[%clk 0:02:46.2]} 12... Qa5 {[%clk
0:02:19]} 13. O-O {[%clk 0:02:39.5]} 13... e5 {[%clk 0:02:19]} 14. dxe5 {[%clk
0:02:39.7]} 14... Bxe5 {[%clk 0:02:19]} 15. Bxe5 {[%clk 0:02:40.1]} 15... Qxe5
{[%clk 0:02:19.5]} 16. Qe3 {[%clk 0:02:36.3]} 16... Rb8 {[%clk 0:02:19.5]} 17.
b3 {[%clk 0:02:34.7]} 17... Bf5 {[%clk 0:02:11.4]} 18. Rad1 {[%clk 0:02:32.9]}
18... Qa5 {[%clk 0:02:04.6]} 19. Rd2 {[%clk 0:02:31.5]} 19... Rfd8 {[%clk
0:01:57.2]} 20. Rfd1 {[%clk 0:02:30.7]} 20... Rd5 {[%clk 0:01:45.7]} 21. c4
{[%clk 0:02:24.3]} 21... Rxd2 {[%clk 0:01:44.5]} 22. Qxd2 {[%clk 0:02:25.2]}
22... Qxd2 {[%clk 0:01:42.4]} 23. Rxd2 {[%clk 0:02:26.1]} 23... h5 {[%clk
0:01:37.4]} 24. Rd6 {[%clk 0:02:23]} 24... Rc8 {[%clk 0:01:37]} 25. c5 {[%clk
0:02:16.6]} 25... Kf8 {[%clk 0:01:36.7]} 26. Bc4 {[%clk 0:02:11.1]} 26... Ke7
{[%clk 0:01:36]} 27. Kf1 {[%clk 0:02:07.3]} 27... h4 {[%clk 0:01:17.9]} 28. h3
{[%clk 0:01:55.1]} 28... a5 {[%clk 0:01:10]} 29. a3 {[%clk 0:01:40.5]} 29... e3
{[%clk 0:00:49.2]} 30. fxe3 {[%clk 0:01:35.8]} 30... Be4 {[%clk 0:00:49.5]} 31.
Rd4 {[%clk 0:01:22.8]} 31... f5 {[%clk 0:00:46.8]} 32. Rd6 {[%clk 0:01:23]}
32... g5 {[%clk 0:00:36]} 33. Re6+ {[%clk 0:01:22]} 33... Kd7 {[%clk 0:00:24.3]}
34. Rg6 {[%clk 0:01:14.5]} 34... Kc7 {[%clk 0:00:24]} 35. Rxg5 {[%clk
0:01:09.5]} 35... Rd8 {[%clk 0:00:24.5]} 36. Rg7+ {[%clk 0:01:03.2]} 36... Kb8
{[%clk 0:00:24.4]} 37. Ke2 {[%clk 0:01:03.7]} 37... Re8 {[%clk 0:00:18.7]} 38.
Rg8 {[%clk 0:01:03.4]} 38... Rxg8 {[%clk 0:00:18.1]} 39. Bxg8 {[%clk 0:01:04.3]}
39... Bxg2 {[%clk 0:00:18.2]} 40. Be6 {[%clk 0:00:58.5]} 40... Be4 {[%clk
0:00:10.1]} 41. Kd2 {[%clk 0:00:57.3]} 41... Kc7 {[%clk 0:00:09.7]} 42. Kc3
{[%clk 0:00:57.8]} 42... Kd8 {[%clk 0:00:10.1]} 43. Kd4 {[%clk 0:00:57.7]} 43...
Bc2 {[%clk 0:00:03.8]} 44. b4 {[%clk 0:00:56.2]} 44... axb4 {[%clk 0:00:03.5]}
45. axb4 {[%clk 0:00:57.1]} 45... Kc7 {[%clk 0:00:03.9]} 46. Ke5 {[%clk
0:00:56.4]} 46... Kb7 {[%clk 0:00:04.3]} 47. Bxf5 {[%clk 0:00:56.4]} 47... Bd1
{[%clk 0:00:02.8]} 48. Bd3 {[%clk 0:00:54.1]} 48... Bh5 {[%clk 0:00:01.5]} 49.
Kf4 {[%clk 0:00:52.1]} 49... Bf7 {[%clk 0:00:02.3]} 50. Kg5 {[%clk 0:00:51.6]}
50... Be6 {[%clk 0:00:03.2]} 51. Kxh4 {[%clk 0:00:51.3]} 51... Kc7 {[%clk
0:00:03.7]} 52. Kg3 {[%clk 0:00:50]} 52... Kd8 {[%clk 0:00:04.1]} 53. h4 {[%clk
0:00:50.9]} 53... Ke7 {[%clk 0:00:04.6]} 54. Kf4 {[%clk 0:00:51.5]} 54... Kf6
{[%clk 0:00:05]} 55. e4 {[%clk 0:00:52.1]} 55... Kg6 {[%clk 0:00:05.4]} 56. b5
{[%clk 0:00:47.7]} 56... cxb5 {[%clk 0:00:05.4]} 57. Bxb5 {[%clk 0:00:48.6]}
57... Kh5 {[%clk 0:00:05.7]} 58. Ke5 {[%clk 0:00:46.3]} 58... Bh3 {[%clk
0:00:03.3]} 59. Kf6 {[%clk 0:00:44.5]} 59... Kxh4 {[%clk 0:00:02.1]} 60. e5
{[%clk 0:00:44.9]} 60... Kg3 {[%clk 0:00:02.3]} 61. e6 {[%clk 0:00:44.8]} 1-0

[Event "Early-Titled-Tuesday-Blitz-April-16-2024"]
[Site "Chess.com"]
[Date "2024.04.16"]
[Round "11"]
[White "GothamChess"]
[Black "Predator0608"]
[Result "0-1"]
[WhiteElo "2658"]
[BlackElo "2599"]
[TimeControl "180+1"]
[EndTime "10:12:32 PDT"]
[Termination "Predator0608 won on time"]

1. e4 {[%clk 0:03:00.9]} 1... e5 {[%clk 0:03:00.3]} 2. Nc3 {[%clk 0:02:59.1]}
2... Nc6 {[%clk 0:03:00.7]} 3. Bc4 {[%clk 0:02:58.9]} 3... Nf6 {[%clk
0:02:58.4]} 4. d3 {[%clk 0:02:59]} 4... h6 {[%clk 0:02:56.3]} 5. f4 {[%clk
0:02:58.3]} 5... Bc5 {[%clk 0:02:45.9]} 6. Nf3 {[%clk 0:02:53.1]} 6... d6 {[%clk
0:02:45.4]} 7. Na4 {[%clk 0:02:53.1]} 7... Bb6 {[%clk 0:02:38.8]} 8. Nxb6 {[%clk
0:02:52.6]} 8... axb6 {[%clk 0:02:39.7]} 9. a3 {[%clk 0:02:36]} 9... exf4 {[%clk
0:02:03.2]} 10. Bxf4 {[%clk 0:02:34.8]} 10... Be6 {[%clk 0:02:03.8]} 11. Bb5
{[%clk 0:02:20.8]} 11... O-O {[%clk 0:01:37.6]} 12. O-O {[%clk 0:02:20.2]} 12...
Bg4 {[%clk 0:01:26.7]} 13. Bxc6 {[%clk 0:02:12.6]} 13... bxc6 {[%clk 0:01:27.6]}
14. Qd2 {[%clk 0:02:07.6]} 14... Nh7 {[%clk 0:01:19.4]} 15. h3 {[%clk
0:01:55.5]} 15... Be6 {[%clk 0:01:11.7]} 16. Rf2 {[%clk 0:01:46.3]} 16... c5
{[%clk 0:01:06.5]} 17. Raf1 {[%clk 0:01:45]} 17... d5 {[%clk 0:00:48]} 18. e5
{[%clk 0:01:40.1]} 18... d4 {[%clk 0:00:45.8]} 19. Kh1 {[%clk 0:01:30.5]} 19...
Kh8 {[%clk 0:00:42.3]} 20. Qe2 {[%clk 0:01:13.1]} 20... Bd5 {[%clk 0:00:42.1]}
21. Nd2 {[%clk 0:01:10.3]} 21... Qe7 {[%clk 0:00:40.3]} 22. Qh5 {[%clk
0:01:08.1]} 22... Rae8 {[%clk 0:00:39.2]} 23. Nf3 {[%clk 0:00:59.1]} 23... Qe6
{[%clk 0:00:38.6]} 24. Bg3 {[%clk 0:00:56.5]} 24... Kg8 {[%clk 0:00:36.3]} 25.
Kh2 {[%clk 0:00:53.5]} 25... Kh8 {[%clk 0:00:36.8]} 26. Nh4 {[%clk 0:00:51.8]}
26... Bb7 {[%clk 0:00:31.2]} 27. b3 {[%clk 0:00:50.7]} 27... Bd5 {[%clk
0:00:30.2]} 28. a4 {[%clk 0:00:50.9]} 28... Ra8 {[%clk 0:00:27.7]} 29. Qd1
{[%clk 0:00:39.2]} 29... Ng5 {[%clk 0:00:27.5]} 30. Rf6 {[%clk 0:00:33.4]} 30...
Qd7 {[%clk 0:00:23.3]} 31. Qh5 {[%clk 0:00:27.7]} 31... Nh7 {[%clk 0:00:20]} 32.
R6f2 {[%clk 0:00:23.1]} 32... Qe6 {[%clk 0:00:19.8]} 33. Re1 {[%clk 0:00:18.4]}
33... Kg8 {[%clk 0:00:20.1]} 34. Nf5 {[%clk 0:00:17.7]} 34... Kh8 {[%clk
0:00:20.4]} 35. Qd1 {[%clk 0:00:15]} 35... Ng5 {[%clk 0:00:19.8]} 36. Bf4 {[%clk
0:00:15.1]} 36... Nh7 {[%clk 0:00:20.1]} 37. Ng3 {[%clk 0:00:12.7]} 37... Rae8
{[%clk 0:00:20.5]} 38. Rfe2 {[%clk 0:00:11.5]} 38... Qg6 {[%clk 0:00:20.6]} 39.
Qd2 {[%clk 0:00:09]} 39... Ng5 {[%clk 0:00:20.4]} 40. Bxg5 {[%clk 0:00:08.9]}
40... Qxg5 {[%clk 0:00:21.3]} 41. Qxg5 {[%clk 0:00:08.6]} 41... hxg5 {[%clk
0:00:22.2]} 42. Nf5 {[%clk 0:00:07.9]} 42... Kh7 {[%clk 0:00:21.9]} 43. g4
{[%clk 0:00:06.5]} 43... g6 {[%clk 0:00:21.4]} 44. Ng3 {[%clk 0:00:07.1]} 44...
Kg7 {[%clk 0:00:21.8]} 45. Rf2 {[%clk 0:00:06.9]} 45... Re7 {[%clk 0:00:21.7]}
46. Rfe2 {[%clk 0:00:06.1]} 46... Rfe8 {[%clk 0:00:22.1]} 47. Kg1 {[%clk
0:00:04.9]} 47... Bf3 {[%clk 0:00:22]} 48. Rf2 {[%clk 0:00:05]} 48... Bd5 {[%clk
0:00:21.3]} 49. Rfe2 {[%clk 0:00:04.9]} 49... Rh8 {[%clk 0:00:22.2]} 50. Kh2
{[%clk 0:00:05.2]} 50... Bf3 {[%clk 0:00:21.7]} 51. Rf2 {[%clk 0:00:05.4]} 51...
Bxg4 {[%clk 0:00:22.3]} 52. Re4 {[%clk 0:00:03.8]} 52... Bxh3 {[%clk 0:00:22.2]}
53. Kg1 {[%clk 0:00:03]} 53... Be6 {[%clk 0:00:22.8]} 54. b4 {[%clk 0:00:03.2]}
54... Bd5 {[%clk 0:00:22.8]} 55. Rg4 {[%clk 0:00:03.6]} 55... Rxe5 {[%clk
0:00:21.5]} 0-1